[Event "NOR-ch Elite 2019"]
[Site "Larvik"]
[Date "2019.07.12"]
[Round "8.11"]
[White "Vitenberg, Noam Aviv"]
[Black "Tryggestad, Andreas Garberg"]
[Result "1/2-1/2"]
[ECO "A34"]
[WhiteElo "2300"]
[BlackElo "2336"]
[Annotator "NA"]
[PlyCount "141"]
[EventDate "2019.07.05"]
[EventType "swiss"]
[EventCountry "NOR"]
[SourceTitle "playchess.com"]
[Source "ChessBase"]
[SourceQuality "1"]
[TimeControl "40/5400+30:1800+30"]

1. Nf3 {[%emt 0:07:03]} Nf6 {[%emt 0:07:20]} 2. c4 {[%emt 0:00:00]} c5 {[%emt 0:00:06]} 3. Nc3 {[%emt 0:00:00]} d5 {[%emt 0:00:07]} 4. cxd5 {[%emt 0:00:00]} Nxd5 {[%emt 0:00:02]} 5. e3 {[%emt 0:00:00]} Nc6 {[%emt 0:00:09]} 6. Bb5 {[%emt 0:00:00]} e6 {[%emt 0:00:35]} 7. O-O {[%emt 0:00:00]} Bd7 {[%emt 0:01:59]} 8. Nxd5 {[%emt 0:00:00]} exd5 {[%emt 0:01:15]} 9. d4 {[%emt 0:00:00]} cxd4 {[%emt 0:04:19]} 10. Nxd4 {[%emt 0:00:00]} Be7 {[%emt 0:00:07]} 11. Nf3 {[%emt 0:03:53]} a6 {[%emt 0:04:24]} 12. Be2 {[%emt 0:04:13]} Be6 {[%emt 0:00:06]} 13. b3 {[%emt 0:02:09]} Bf6 {[%emt 0:02:16]} 14. Rb1 {[%emt 0:07:39]} Qa5 {[%emt 0:16:32]} 15. a4 {[%emt 0:05:01]} O-O {[%emt 0:05:59]} 16. Bb2 {[%emt 0:00:56]} Bxb2 {[%emt 0:00:10]} 17. Rxb2 {[%emt 0:00:07]} Rac8 {[%emt 0:00:18]} 18. Qd3 {[%emt 0:10:28]} h6 {[%emt 0:03:42]} 19. Rd1 {[%emt 0:08:50]} Rfd8 {[%emt 0:01:24]} 20. h3 {[%emt 0:03:31]} Qb4 {[%emt 0:03:22]} 21. Nd4 {[%emt 0:06:35]} Nxd4 {[%emt 0:10:48]} 22. Qxd4 {[%emt 0:00:35]} Qc3 {[%emt 0:02:03]} 23. Bf3 {[%emt 0:01:14]} Kf8 {[%emt 0:01:46]} 24. Kh2 {[%emt 0:01:41]} Ke7 {[%emt 0:00:23]} 25. Rdd2 {[%emt 0:01:22]} Qxd4 {[%emt 0:06:30]} 26. Rxd4 {[%emt 0:00:18]} Rc3 {[%emt 0:00:06]} 27. a5 {[%emt 0:07:30]} b6 {[%emt 0:05:02]} 28. axb6 {[%emt 0:06:09]} Rb8 {[%emt 0:00:05]} 29. Bxd5 {[%emt 0:01:52]} Bxd5 {[%emt 0:00:02]} 30. Rxd5 {[%emt 0:00:08]} Rxb6 {[%emt 0:00:03]} 31. Ra5 {[%emt 0:05:08]} Rcxb3 {[%emt 0:00:06]} 32. Rxb3 {[%emt 0:00:13]} Rxb3 {[%emt 0:00:01]} 33. Rxa6 {[%emt 0:00:07]} h5 {[%emt 0:00:03]} 34. Kg3 {[%emt 0:01:53]} g6 {[%emt 0:00:12]} 35. Ra2 {[%emt 0:02:00]} Kf6 {[%emt 0:01:01]} 36. h4 {[%emt 0:03:15]} Rb4 {[%emt 0:00:42]} 37. f3 {[%emt 0:00:16]} Rb6 {[%emt 0:00:54]} 38. e4 {[%emt 0:00:34]} Ke5 {[%emt 0:00:24]} 39. Ra5+ {[%emt 0:00:20]} Kf6 {[%emt 0:00:03]} 40. Kf4 {[%emt 0:05:50]} Rb4 {[%emt 0:01:40]} 41. Kg3 {[%emt 0:32:07]} Rc4 {[%emt 0:32:17]} 42. Ra6+ {[%emt 0:01:19]} Ke5 {[%emt 0:00:12]} 43. Ra5+ {[%emt 0:03:41]} Kf6 {[%emt 0:00:16]} 44. Kf4 {[%emt 0:00:25]} Rb4 {[%emt 0:00:06]} 45. Ra3 {[%emt 0:00:23]} Rc4 {[%emt 0:02:04]} 46. Ke3 {[%emt 0:01:21]} Rc6 {[%emt 0:01:33]} 47. f4 {[%emt 0:00:53]} Rb6 {[%emt 0:00:13]} 48. g3 {[%emt 0:00:20]} Rc6 {[%emt 0:00:47]} 49. Kd4 {[%emt 0:00:37]} Rd6+ {[%emt 0:00:10]} 50. Ke3 {[%emt 0:00:00]} Rb6 {[%emt 0:00:00]} 51. Kd4 {[%emt 0:00:00]} Rd6+ {[%emt 0:00:00]} 52. Kc5 {[%emt 0:00:00]} Rd1 {[%emt 0:00:00]} 53. e5+ {[%emt 0:00:00]} Ke6 {[%emt 0:00:00]} 54. Kc4 {[%emt 0:00:00]} Rc1+ {[%emt 0:00:00]} 55. Kd4 {[%emt 0:00:00]} Rd1+ {[%emt 0:00:00]} 56. Ke4 {[%emt 0:00:00]} Re1+ {[%emt 0:00:00]} 57. Re3 {[%emt 0:00:00]} Rxe3+ {[%emt 0:00:00]} 58. Kxe3 {[%emt 0:00:00]} Kf5 {[%emt 0:00:00]} 59. Kf3 {[%emt 0:00:00]} f6 {[%emt 0:00:00]} 60. exf6 {[%emt 0:00:00]} Kxf6 {[%emt 0:00:00]} 61. Ke4 {[%emt 0:00:00]} Ke6 {[%emt 0:00:00]} 62. f5+ {[%emt 0:00:00]} gxf5+ {[%emt 0:00:00]} 63. Ke3 {[%emt 0:00:00]} Ke5 {[%emt 0:00:00]} 64. Kf3 {[%emt 0:00:00]} Ke6 {[%emt 0:00:00]} 65. Ke2 {[%emt 0:00:00]} Kd5 {[%emt 0:00:00]} 66. Kd3 {[%emt 0:00:00]} Ke5 {[%emt 0:00:00]} 67. Ke3 {[%emt 0:00:00]} Ke6 {[%emt 0:00:00]} 68. Kf2 {[%emt 0:00:00]} Ke5 {[%emt 0:00:00]} 69. Kf3 {[%emt 0:00:00]} Ke6 {[%emt 0:00:00]} 70. Kf4 {[%emt 0:00:00]} Kf6 {[%emt 0:00:00]} 71. Ke3 {[%emt 0:00:00]} 1/2-1/2

[Event "NOR-ch Elite 2019"]
[Site "Larvik"]
[Date "2019.07.12"]
[Round "8.12"]
[White "Moen, Andreas G.R."]
[Black "Ingebretsen, Jens E"]
[Result "1/2-1/2"]
[ECO "B48"]
[WhiteElo "2322"]
[BlackElo "2276"]
[Annotator "NA"]
[PlyCount "145"]
[EventDate "2019.07.05"]
[EventType "swiss"]
[EventCountry "NOR"]
[SourceTitle "playchess.com"]
[Source "ChessBase"]
[SourceQuality "1"]
[TimeControl "40/5400+30:1800+30"]

1. e4 {[%emt 0:04:47]} c5 {[%emt 0:06:10]} 2. Nf3 {[%emt 0:00:00]} e6 {[%emt 0:00:05]} 3. d4 {[%emt 0:00:00]} cxd4 {[%emt 0:00:06]} 4. Nxd4 {[%emt 0:00:00]} Nc6 {[%emt 0:00:06]} 5. Nc3 {[%emt 0:00:00]} Qc7 {[%emt 0:00:05]} 6. Be3 {[%emt 0:00:00]} a6 {[%emt 0:00:05]} 7. Qd2 {[%emt 0:00:00]} Nf6 {[%emt 0:00:06]} 8. O-O-O {[%emt 0:00:00]} b5 {[%emt 0:02:27]} 9. Bf4 {[%emt 0:03:06]} Qb6 {[%emt 0:05:25]} 10. e5 {[%emt 0:05:34]} Qxd4 {[%emt 0:15:18]} 11. Qxd4 {[%emt 0:00:48]} Nxd4 {[%emt 0:00:05]} 12. Rxd4 {[%emt 0:00:39]} Bc5 {[%emt 0:13:23]} 13. Rd2 {[%emt 0:01:54]} Nh5 {[%emt 0:00:05]} 14. Ne4 {[%emt 0:07:19]} Bb4 {[%emt 0:02:56]} 15. Rd4 {[%emt 0:16:26]} Nxf4 {[%emt 0:02:42]} 16. Rxb4 {[%emt 0:00:48]} Nd5 {[%emt 0:04:05]} 17. Rd4 {[%emt 0:05:48]} Ke7 {[%emt 0:01:09]} 18. Nd6 {[%emt 0:00:07]} f6 {[%emt 0:02:03]} 19. f4 {[%emt 0:00:04]} Ra7 {[%emt 0:06:58]} 20. g3 {[%emt 0:12:00]} Rc7 {[%emt 0:08:14]} 21. Bd3 {[%emt 0:04:17]} h5 {[%emt 0:05:10]} 22. Re1 {[%emt 0:13:56]} Nb6 {[%emt 0:07:14]} 23. Be4 {[%emt 0:02:35]} h4 {[%emt 0:02:30]} 24. c3 {[%emt 0:05:49]} hxg3 {[%emt 0:03:29]} 25. hxg3 {[%emt 0:00:01]} Rh3 {[%emt 0:01:59]} 26. Rh1 {[%emt 0:01:06]} Rxh1+ {[%emt 0:01:09]} 27. Bxh1 {[%emt 0:00:01]} Rc5 {[%emt 0:01:51]} 28. Re4 {[%emt 0:04:14]} a5 {[%emt 0:03:35]} 29. a3 {[%emt 0:01:52]} Ba6 {[%emt 0:00:57]} 30. Bg2 {[%emt 0:05:48]} Nc8 {[%emt 0:01:56]} 31. Nxc8+ {[%emt 0:01:21]} Bxc8 {[%emt 0:00:05]} 32. Re3 {[%emt 0:00:23]} b4 {[%emt 0:00:37]} 33. axb4 {[%emt 0:00:37]} axb4 {[%emt 0:00:05]} 34. Kc2 {[%emt 0:00:44]} Ba6 {[%emt 0:02:41]} 35. Kb3 {[%emt 0:04:27]} bxc3 {[%emt 0:00:12]} 36. bxc3 {[%emt 0:00:05]} Rb5+ {[%emt 0:00:46]} 37. Kc2 {[%emt 0:00:56]} Ra5 {[%emt 0:01:23]} 38. Kb3 {[%emt 0:00:18]} Ra1 {[%emt 0:00:22]} 39. Kb4 {[%emt 0:00:54]} Rg1 {[%emt 0:00:49]} 40. Be4 {[%emt 0:00:19]} Rc1 {[%emt 0:00:37]} 41. Kc5 {[%emt 0:04:34]} Bf1 {[%emt 0:02:53]} 42. Bf3 {[%emt 0:08:15]} Rb1 {[%emt 0:04:30]} 43. Kd4 {[%emt 0:00:47]} Rb2 {[%emt 0:01:32]} 44. Re1 {[%emt 0:01:43]} Ba6 {[%emt 0:04:55]} 45. Be4 {[%emt 0:03:44]} Ra2 {[%emt 0:04:00]} 46. c4 {[%emt 0:04:49]} Ra4 {[%emt 0:01:31]} 47. Rc1 {[%emt 0:00:17]} Kd8 {[%emt 0:01:57]} 48. Rc2 {[%emt 0:02:41]} Kc7 {[%emt 0:00:17]} 49. Bd3 {[%emt 0:00:13]} Ra1 {[%emt 0:00:57]} 50. Be4 {[%emt 0:04:38]} Ra4 {[%emt 0:02:29]} 51. Bd3 {[%emt 0:01:00]} Ra1 {[%emt 0:03:56]} 52. Be4 {[%emt 0:00:04]} Rd1+ {[%emt 0:01:45]} 53. Kc5 {[%emt 0:00:13]} fxe5 {[%emt 0:01:35]} 54. fxe5 {[%emt 0:00:15]} Re1 {[%emt 0:00:27]} 55. Kd4 {[%emt 0:00:54]} Bb7 {[%emt 0:04:32]} 56. Bxb7 {[%emt 0:00:28]} Kxb7 {[%emt 0:00:10]} 57. Rf2 {[%emt 0:00:53]} Kc6 {[%emt 0:00:21]} 58. Rf7 {[%emt 0:00:14]} Rd1+ {[%emt 0:00:24]} 59. Ke4 {[%emt 0:01:49]} g5 {[%emt 0:01:17]} 60. Rg7 {[%emt 0:00:13]} Kc5 {[%emt 0:00:35]} 61. Rxg5 {[%emt 0:00:17]} Rd4+ {[%emt 0:00:37]} 62. Ke3 {[%emt 0:01:42]} Rxc4 {[%emt 0:00:14]} 63. Rg7 {[%emt 0:00:22]} Kc6 {[%emt 0:00:41]} 64. g4 {[%emt 0:00:12]} Kd5 {[%emt 0:00:42]} 65. Rxd7+ {[%emt 0:00:26]} Kxe5 {[%emt 0:00:05]} 66. Kf3 {[%emt 0:01:21]} Rc3+ {[%emt 0:00:08]} 67. Kf2 {[%emt 0:00:33]} Ke4 {[%emt 0:00:32]} 68. Ra7 {[%emt 0:00:38]} e5 {[%emt 0:00:28]} 69. Ra4+ {[%emt 0:00:27]} Kd3 {[%emt 0:00:09]} 70. Kf3 {[%emt 0:00:28]} Rc1 {[%emt 0:00:38]} 71. Ra3+ {[%emt 0:00:26]} Kd4 {[%emt 0:00:07]} 72. Ra4+ {[%emt 0:00:06]} Kd3 {[%emt 0:00:04]} 73. Ra3+ {[%emt 0:00:08]} 1/2-1/2

[Event "NOR-ch Elite 2019"]
[Site "Larvik"]
[Date "2019.07.13"]
[Round "9.7"]
[White "Stokke, Kjetil"]
[Black "Ranaldi, Lucas"]
[Result "1/2-1/2"]
[ECO "B12"]
[WhiteElo "2336"]
[BlackElo "2262"]
[Annotator "ChessBase"]
[PlyCount "83"]
[EventDate "2019.07.05"]
[EventType "swiss"]
[EventCountry "NOR"]
[SourceTitle "playchess.com"]
[Source "ChessBase"]
[SourceQuality "1"]
[TimeControl "40/5400+30:1800+30"]

1. e4 {[%emt 0:00:00]} c6 {[%emt 0:03:26]} 2. d4 {[%emt 0:00:00]} d5 {[%emt 0:00:05]} 3. e5 {[%emt 0:00:00]} Bf5 {[%emt 0:00:05]} 4. Nf3 {[%emt 0:00:00]} e6 {[%emt 0:00:03]} 5. Be2 {[%emt 0:00:00]} Nd7 {[%emt 0:05:06]} 6. O-O {[%emt 0:01:02]} Bg6 {[%emt 0:00:19]} 7. Nbd2 {[%emt 0:00:10]} Nh6 {[%emt 0:00:17]} 8. Nb3 {[%emt 0:00:27]} Nf5 {[%emt 0:00:17]} 9. Bd2 {[%emt 0:01:31]} Be7 {[%emt 0:00:29]} 10. g4 {[%emt 0:00:09]} Nh4 {[%emt 0:00:37]} 11. Nxh4 {[%emt 0:00:04]} Bxh4 {[%emt 0:00:10]} 12. f4 {[%emt 0:00:05]} f5 {[%emt 0:23:03]} 13. exf6 {[%emt 0:00:23]} Bxf6 {[%emt 0:06:57]} 14. Bd3 {[%emt 0:10:19]} Bxd3 {[%emt 0:01:06]} 15. cxd3 {[%emt 0:00:16]} g6 {[%emt 0:07:47]} 16. Qe2 {[%emt 0:07:54]} Kf7 {[%emt 0:01:21]} 17. f5 {[%emt 0:11:11]} exf5 {[%emt 0:01:22]} 18. gxf5 {[%emt 0:00:23]} Re8 {[%emt 0:00:28]} 19. Qg4 {[%emt 0:00:40]} b6 {[%emt 0:04:48]} 20. Kh1 {[%emt 0:11:03]} Kg7 {[%emt 0:03:45]} 21. fxg6 {[%emt 0:02:56]} hxg6 {[%emt 0:00:14]} 22. Rg1 {[%emt 0:00:22]} Nf8 {[%emt 0:00:52]} 23. Qh5 {[%emt 0:04:20]} Kf7 {[%emt 0:03:27]} 24. Qf3 {[%emt 0:06:14]} Re6 {[%emt 0:05:13]} 25. Raf1 {[%emt 0:02:43]} Qe7 {[%emt 0:03:53]} 26. Qg4 {[%emt 0:06:23]} Kg8 {[%emt 0:02:29]} 27. Bh6 {[%emt 0:02:37]} Bg7 {[%emt 0:02:20]} 28. Bg5 {[%emt 0:00:04]} Qd7 {[%emt 0:00:30]} 29. Nd2 {[%emt 0:02:13]} Rae8 {[%emt 0:00:33]} 30. Nf3 {[%emt 0:03:24]} Re2 {[%emt 0:01:06]} 31. Qh4 {[%emt 0:00:25]} Rxb2 {[%emt 0:13:33]} 32. Ne5 {[%emt 0:01:25]} Bxe5 {[%emt 0:00:20]} 33. dxe5 {[%emt 0:00:10]} d4 {[%emt 0:04:13]} 34. Rg3 {[%emt 0:02:45]} Qd5+ {[%emt 0:03:01]} 35. Kg1 {[%emt 0:00:15]} Rxe5 {[%emt 0:00:53]} 36. Rxf8+ {[%emt 0:08:52]} Kxf8 {[%emt 0:00:03]} 37. Qh8+ {[%emt 0:00:12]} Kf7 {[%emt 0:00:16]} 38. Qh7+ {[%emt 0:01:39]} Ke8 {[%emt 0:00:30]} 39. Qh8+ {[%emt 0:00:25]} Kf7 {[%emt 0:00:43]} 40. Qh7+ {[%emt 0:04:01]} Ke8 {[%emt 0:00:22]} 41. Qh8+ {[%emt 0:30:04]} Kf7 {[%emt 0:30:18]} 42. Qh7+ {[%emt 0:00:06]} 1/2-1/2

[Event "NOR-ch Elite 2019"]
[Site "Larvik"]
[Date "2019.07.13"]
[Round "9.11"]
[White "Altarbosh, Ward"]
[Black "Tryggestad, Andreas Garberg"]
[Result "0-1"]
[ECO "B48"]
[WhiteElo "2202"]
[BlackElo "2336"]
[Annotator "ChessBase"]
[PlyCount "74"]
[EventDate "2019.07.05"]
[EventType "swiss"]
[EventCountry "NOR"]
[SourceTitle "playchess.com"]
[Source "ChessBase"]
[SourceQuality "1"]
[TimeControl "40/5400+30:1800+30"]

1. e4 {[%emt 0:00:00]} c5 {[%emt 0:02:24]} 2. Nf3 {[%emt 0:00:00]} e6 {[%emt 0:00:01]} 3. d4 {[%emt 0:00:10]} cxd4 {[%emt 0:00:05]} 4. Nxd4 {[%emt 0:00:06]} Nc6 {[%emt 0:00:04]} 5. Nc3 {[%emt 0:00:15]} Qc7 {[%emt 0:00:05]} 6. Be3 {[%emt 0:00:14]} Nf6 {[%emt 0:00:07]} 7. f4 {[%emt 0:00:19]} Bb4 {[%emt 0:00:23]} 8. Ndb5 {[%emt 0:11:19]} Qa5 {[%emt 0:00:34]} 9. e5 {[%emt 0:00:12]} Nd5 {[%emt 0:00:04]} 10. Bd2 {[%emt 0:00:13]} Nxc3 {[%emt 0:00:06]} 11. Nxc3 {[%emt 0:00:42]} d5 {[%emt 0:00:06]} 12. exd6 {[%emt 0:01:22]} Bxd6 {[%emt 0:00:03]} 13. Ne4 {[%emt 0:00:47]} Bb4 {[%emt 0:00:08]} 14. Nd6+ {[%emt 0:00:51]} Ke7 {[%emt 0:00:35]} 15. Nc4 {[%emt 0:00:09]} Bxd2+ {[%emt 0:00:13]} 16. Nxd2 {[%emt 0:00:06]} Qb4 {[%emt 0:02:31]} 17. Qg4 {[%emt 0:00:06]} Qxb2 {[%emt 0:03:30]} 18. Rb1 {[%emt 0:00:04]} Qxc2 {[%emt 0:10:47]} 19. Qg5+ {[%emt 0:03:23]} Kf8 {[%emt 0:02:29]} 20. Bc4 {[%emt 0:20:24]} b6 {[%emt 0:08:31]} 21. Rd1 {[%emt 0:05:10]} Qg6 {[%emt 0:02:02]} 22. Qb5 {[%emt 0:06:14]} Qxg2 {[%emt 0:04:11]} 23. Rf1 {[%emt 0:00:17]} Bb7 {[%emt 0:00:38]} 24. Nf3 {[%emt 0:01:33]} Qc2 {[%emt 0:08:02]} 25. Ng5 {[%emt 0:35:27]} Ke7 {[%emt 0:20:27]} 26. Rd2 {[%emt 0:04:36]} Qc3 {[%emt 0:01:49]} 27. Rf3 {[%emt 0:03:13]} Qb4 {[%emt 0:03:23]} 28. Nxf7 {[%emt 0:02:02]} Qxb5 {[%emt 0:04:25]} 29. Bxb5 {[%emt 0:00:06]} Kxf7 {[%emt 0:00:02]} 30. Rd7+ {[%emt 0:00:06]} Kf6 {[%emt 0:01:23]} 31. Rg3 {[%emt 0:00:05]} Bc8 {[%emt 0:02:05]} 32. Rc7 {[%emt 0:01:05]} Ne7 {[%emt 0:00:28]} 33. Bd3 {[%emt 0:00:19]} Rb8 {[%emt 0:01:07]} 34. Be4 {[%emt 0:00:11]} Rd8 {[%emt 0:00:26]} 35. Rxa7 {[%emt 0:00:13]} Rd7 {[%emt 0:00:19]} 36. Ra4 {[%emt 0:00:06]} Bb7 {[%emt 0:02:21]} 37. Ra7 {[%emt 0:00:51]} Nc8 {[%emt 0:00:09]} 0-1

[Event "NOR-ch Elite 2019"]
[Site "Larvik"]
[Date "2019.07.13"]
[Round "9.12"]
[White "Andersen, Alf Roger"]
[Black "Vitenberg, Noam Aviv"]
[Result "0-1"]
[ECO "B18"]
[WhiteElo "2149"]
[BlackElo "2300"]
[Annotator "ChessBase"]
[PlyCount "126"]
[EventDate "2019.07.05"]
[EventType "swiss"]
[EventCountry "NOR"]
[SourceTitle "playchess.com"]
[Source "ChessBase"]
[SourceQuality "1"]
[TimeControl "40/5400+30:1800+30"]

1. e4 {[%emt 0:00:00]} c6 {[%emt 0:00:00]} 2. d4 {[%emt 0:00:04]} d5 {[%emt 0:00:00]} 3. Nc3 {[%emt 0:00:48]} dxe4 {[%emt 0:00:00]} 4. Nxe4 {[%emt 0:00:05]} Bf5 {[%emt 0:00:00]} 5. Ng3 {[%emt 0:00:08]} Bg6 {[%emt 0:00:01]} 6. Bc4 {[%emt 0:00:14]} e6 {[%emt 0:00:07]} 7. N1e2 {[%emt 0:00:22]} Bd6 {[%emt 0:00:10]} 8. O-O {[%emt 0:00:26]} Qc7 {[%emt 0:00:12]} 9. f4 {[%emt 0:01:34]} Ne7 {[%emt 0:00:06]} 10. Kh1 {[%emt 0:02:13]} Nd7 {[%emt 0:04:24]} 11. Bd3 {[%emt 0:06:21]} O-O-O {[%emt 0:07:31]} 12. c4 {[%emt 0:02:18]} c5 {[%emt 0:13:41]} 13. Be3 {[%emt 0:06:47]} Nf6 {[%emt 0:04:46]} 14. Rc1 {[%emt 0:20:14]} Kb8 {[%emt 0:06:02]} 15. f5 {[%emt 0:10:24]} Ng4 {[%emt 0:05:30]} 16. Bg1 {[%emt 0:07:07]} exf5 {[%emt 0:07:57]} 17. d5 {[%emt 0:09:00]} h5 {[%emt 0:02:37]} 18. b4 {[%emt 0:08:14]} cxb4 {[%emt 0:12:29]} 19. Nd4 {[%emt 0:00:38]} Bc5 {[%emt 0:05:25]} 20. Bxf5 {[%emt 0:04:00]} Nxf5 {[%emt 0:03:00]} 21. Ngxf5 {[%emt 0:00:32]} Bxf5 {[%emt 0:02:06]} 22. Rxf5 {[%emt 0:00:13]} a6 {[%emt 0:00:44]} 23. Qd2 {[%emt 0:06:06]} g6 {[%emt 0:01:51]} 24. Rf3 {[%emt 0:02:12]} Ka8 {[%emt 0:01:20]} 25. h3 {[%emt 0:03:15]} Rde8 {[%emt 0:01:55]} 26. Rb3 {[%emt 0:01:28]} Re4 {[%emt 0:01:26]} 27. Nf3 {[%emt 0:04:10]} Bxg1 {[%emt 0:04:59]} 28. Kxg1 {[%emt 0:01:40]} Qc5+ {[%emt 0:00:40]} 29. Kh1 {[%emt 0:01:22]} a5 {[%emt 0:09:06]} 30. hxg4 {[%emt 0:02:14]} hxg4+ {[%emt 0:00:13]} 31. Nh2 {[%emt 0:00:06]} Rxc4 {[%emt 0:00:20]} 32. Rxc4 {[%emt 0:01:07]} Qxc4 {[%emt 0:00:08]} 33. Kg1 {[%emt 0:00:32]} Rh5 {[%emt 0:02:03]} 34. Nf1 {[%emt 0:00:34]} Rxd5 {[%emt 0:01:06]} 35. Qf2 {[%emt 0:00:28]} Rf5 {[%emt 0:01:44]} 36. Qe1 {[%emt 0:00:11]} Qd4+ {[%emt 0:01:22]} 37. Ne3 {[%emt 0:00:50]} Re5 {[%emt 0:01:04]} 38. Qe2 {[%emt 0:00:24]} f5 {[%emt 0:02:12]} 39. Rd3 {[%emt 0:00:27]} Qa1+ {[%emt 0:00:19]} 40. Kh2 {[%emt 0:00:41]} f4 {[%emt 0:00:42]} 41. Qd1 {[%emt 0:03:24]} Qxd1 {[%emt 0:07:18]} 42. Nxd1 {[%emt 0:00:31]} Re2 {[%emt 0:02:45]} 43. a3 {[%emt 0:01:40]} bxa3 {[%emt 0:03:38]} 44. Rxa3 {[%emt 0:00:09]} b6 {[%emt 0:00:08]} 45. Ra4 {[%emt 0:03:37]} g5 {[%emt 0:03:31]} 46. Nc3 {[%emt 0:01:34]} Re5 {[%emt 0:04:44]} 47. g3 {[%emt 0:04:00]} Rc5 {[%emt 0:05:03]} 48. Ne4 {[%emt 0:05:32]} Rc2+ {[%emt 0:01:51]} 49. Kg1 {[%emt 0:00:14]} Rc1+ {[%emt 0:01:15]} 50. Kf2 {[%emt 0:01:47]} Rc2+ {[%emt 0:00:43]} 51. Kf1 {[%emt 0:00:55]} Kb7 {[%emt 0:01:03]} 52. Nxg5 {[%emt 0:04:28]} fxg3 {[%emt 0:00:13]} 53. Rxg4 {[%emt 0:00:05]} g2+ {[%emt 0:00:10]} 54. Rxg2 {[%emt 0:01:33]} Rxg2 {[%emt 0:00:20]} 55. Kxg2 {[%emt 0:00:01]} a4 {[%emt 0:00:21]} 56. Ne4 {[%emt 0:00:27]} a3 {[%emt 0:00:11]} 57. Nc3 {[%emt 0:02:41]} b5 {[%emt 0:01:29]} 58. Na2 {[%emt 0:01:39]} Kc6 {[%emt 0:01:49]} 59. Kf3 {[%emt 0:00:08]} Kc5 {[%emt 0:00:09]} 60. Ke3 {[%emt 0:03:45]} b4 {[%emt 0:01:23]} 61. Kd2 {[%emt 0:00:56]} b3 {[%emt 0:00:18]} 62. Nc1 {[%emt 0:01:35]} Kc4 {[%emt 0:00:20]} 63. Nd3 {[%emt 0:00:48]} a2 {[%emt 0:00:21]} 0-1